[Event "EYCC Open-U10 2019"]
[Site "Bratislava"]
[Date "2019.08.07"]
[Round "6.46"]
[White "Suska, Szymon"]
[Black "Udipi, Kala Kishan"]
[Result "0-1"]
[ECO "B23"]
[WhiteElo "1432"]
[BlackElo "1732"]
[Annotator "NA"]
[PlyCount "162"]
[EventDate "2019.08.02"]
[EventType "swiss"]
[EventCountry "SVK"]
[SourceTitle "playchess.com"]
[Source "ChessBase"]
[SourceQuality "1"]
[TimeControl "40/5400+30:1800+30"]

1. e4 {[%emt 0:00:31]} c5 {[%emt 0:00:00]} 2. Nc3 {[%emt 0:00:19]} Nc6 {[%emt 0:00:07]} 3. f4 {[%emt 0:00:14]} e6 {[%emt 0:00:33]} 4. Nf3 {[%emt 0:00:17]} a6 {[%emt 0:00:35]} 5. g3 {[%emt 0:00:29]} d5 {[%emt 0:00:18]} 6. Bg2 {[%emt 0:00:34]} Nge7 {[%emt 0:01:05]} 7. O-O {[%emt 0:01:51]} g6 {[%emt 0:01:07]} 8. d3 {[%emt 0:00:27]} Bg7 {[%emt 0:00:36]} 9. h3 {[%emt 0:05:49]} O-O {[%emt 0:04:26]} 10. g4 {[%emt 0:08:16]} b5 {[%emt 0:02:23]} 11. g5 {[%emt 0:04:29]} b4 {[%emt 0:01:15]} 12. Ne2 {[%emt 0:00:30]} a5 {[%emt 0:01:30]} 13. h4 {[%emt 0:03:15]} Ba6 {[%emt 0:01:06]} 14. e5 {[%emt 0:00:23]} Nf5 {[%emt 0:01:04]} 15. Qe1 {[%emt 0:00:51]} Qb6 {[%emt 0:02:49]} 16. Qf2 {[%emt 0:01:51]} Rab8 {[%emt 0:02:24]} 17. Bh3 {[%emt 0:01:14]} Nce7 {[%emt 0:01:48]} 18. Bxf5 {[%emt 0:01:50]} Nxf5 {[%emt 0:00:31]} 19. Ng3 {[%emt 0:00:14]} c4 {[%emt 0:20:18]} 20. Nxf5 {[%emt 0:01:28]} Qxf2+ {[%emt 0:01:26]} 21. Rxf2 {[%emt 0:00:18]} exf5 {[%emt 0:00:39]} 22. dxc4 {[%emt 0:04:01]} dxc4 {[%emt 0:00:58]} 23. Be3 {[%emt 0:00:13]} Rfd8 {[%emt 0:00:44]} 24. Nd4 {[%emt 0:00:31]} Rbc8 {[%emt 0:04:41]} 25. a3 {[%emt 0:08:06]} Bb7 {[%emt 0:02:48]} 26. axb4 {[%emt 0:02:35]} axb4 {[%emt 0:00:25]} 27. Ra7 {[%emt 0:02:15]} Be4 {[%emt 0:00:14]} 28. Rf1 {[%emt 0:01:00]} Bf8 {[%emt 0:01:11]} 29. c3 {[%emt 0:13:49]} Bc5 {[%emt 0:05:17]} 30. Ra5 {[%emt 0:03:11]} Bxd4 {[%emt 0:01:45]} 31. Bxd4 {[%emt 0:00:17]} b3 {[%emt 0:00:50]} 32. Rfa1 {[%emt 0:00:23]} Rb8 {[%emt 0:00:32]} 33. Ra7 {[%emt 0:02:25]} Rxd4 {[%emt 0:01:02]} 34. cxd4 {[%emt 0:02:05]} c3 {[%emt 0:01:49]} 35. bxc3 {[%emt 0:00:15]} b2 {[%emt 0:00:18]} 36. c4 {[%emt 0:00:12]} bxa1=Q+ {[%emt 0:00:33]} 37. Rxa1 {[%emt 0:00:20]} Rb4 {[%emt 0:00:51]} 38. Rc1 {[%emt 0:00:13]} Bd3 {[%emt 0:00:18]} 39. d5 {[%emt 0:00:28]} Bxc4 {[%emt 0:00:54]} 40. d6 {[%emt 0:00:00]} Be6 {[%emt 0:00:00]} 41. h5 {[%emt 0:00:48]} Rxf4 {[%emt 0:02:29]} 42. h6 {[%emt 0:00:36]} Rg4+ {[%emt 0:02:18]} 43. Kf2 {[%emt 0:01:02]} Kf8 {[%emt 0:00:04]} 44. Rb1 {[%emt 0:00:25]} Ke8 {[%emt 0:00:06]} 45. Rb8+ {[%emt 0:00:13]} Kd7 {[%emt 0:00:08]} 46. Rb7+ {[%emt 0:02:01]} Kc6 {[%emt 0:01:00]} 47. Rc7+ {[%emt 0:00:32]} Kb6 {[%emt 0:00:40]} 48. Re7 {[%emt 0:01:08]} Rxg5 {[%emt 0:00:33]} 49. Re8 {[%emt 0:01:49]} Rh5 {[%emt 0:00:42]} 50. Rb8+ {[%emt 0:00:24]} Kc6 {[%emt 0:00:24]} 51. Rb1 {[%emt 0:00:24]} Rxh6 {[%emt 0:00:12]} 52. Rc1+ {[%emt 0:00:07]} Kd7 {[%emt 0:00:11]} 53. Rc7+ {[%emt 0:00:14]} Kd8 {[%emt 0:00:09]} 54. Ra7 {[%emt 0:00:10]} Rh4 {[%emt 0:00:31]} 55. Ra8+ {[%emt 0:00:12]} Kd7 {[%emt 0:00:09]} 56. Ra7+ {[%emt 0:00:14]} Kc6 {[%emt 0:00:12]} 57. Rc7+ {[%emt 0:00:37]} Kb6 {[%emt 0:00:09]} 58. Rc1 {[%emt 0:00:12]} Re4 {[%emt 0:00:31]} 59. Rb1+ {[%emt 0:00:16]} Kc6 {[%emt 0:00:14]} 60. Rc1+ {[%emt 0:00:18]} Kd7 {[%emt 0:00:07]} 61. Rc7+ {[%emt 0:00:58]} Kd8 {[%emt 0:00:21]} 62. Ra7 {[%emt 0:00:16]} Rxe5 {[%emt 0:00:15]} 63. Ra8+ {[%emt 0:00:27]} Kd7 {[%emt 0:00:13]} 64. Ra7+ {[%emt 0:00:08]} Kxd6 {[%emt 0:00:27]} 65. Ra6+ {[%emt 0:00:09]} Ke7 {[%emt 0:00:09]} 66. Ra7+ {[%emt 0:00:07]} Kf6 {[%emt 0:00:04]} 67. Kg1 {[%emt 0:00:13]} h5 {[%emt 0:00:26]} 68. Kf1 {[%emt 0:00:12]} h4 {[%emt 0:00:17]} 69. Kg1 {[%emt 0:00:06]} h3 {[%emt 0:00:31]} 70. Kh2 {[%emt 0:00:14]} f4 {[%emt 0:00:26]} 71. Kg1 {[%emt 0:00:13]} Bd5 {[%emt 0:00:15]} 72. Kh2 {[%emt 0:00:21]} f3 {[%emt 0:00:24]} 73. Kg1 {[%emt 0:00:10]} f2+ {[%emt 0:00:04]} 74. Kxf2 {[%emt 0:01:00]} h2 {[%emt 0:00:38]} 75. Ra6+ {[%emt 0:00:33]} Re6 {[%emt 0:00:09]} 76. Ra1 {[%emt 0:00:31]} h1=Q {[%emt 0:00:12]} 77. Rxh1 {[%emt 0:00:11]} Bxh1 {[%emt 0:00:05]} 78. Kg3 {[%emt 0:00:08]} Kg5 {[%emt 0:00:08]} 79. Kf2 {[%emt 0:00:16]} Kf4 {[%emt 0:00:10]} 80. Kg1 {[%emt 0:00:41]} Kg3 {[%emt 0:00:10]} 81. Kf1 {[%emt 0:00:12]} Bg2+ {[%emt 0:00:07]} 0-1

[Event "EYCC Open-U10 2019"]
[Site "Bratislava"]
[Date "2019.08.07"]
[Round "6.47"]
[White "Pehar, Borna"]
[Black "Govoreanu, Matei"]
[Result "0-1"]
[ECO "B06"]
[WhiteElo "1677"]
[BlackElo "1241"]
[Annotator "NA"]
[PlyCount "112"]
[EventDate "2019.08.02"]
[EventType "swiss"]
[EventCountry "SVK"]
[SourceTitle "playchess.com"]
[Source "ChessBase"]
[SourceQuality "1"]
[TimeControl "40/5400+30:1800+30"]

1. e4 {[%emt 0:00:05]} g6 {[%emt 0:00:18]} 2. d4 {[%emt 0:00:26]} Bg7 {[%emt 0:01:32]} 3. Nc3 {[%emt 0:01:19]} c6 {[%emt 0:01:20]} 4. Be3 {[%emt 0:01:25]} d5 {[%emt 0:02:09]} 5. Qd2 {[%emt 0:05:38]} dxe4 {[%emt 0:02:00]} 6. Nxe4 {[%emt 0:01:01]} Nf6 {[%emt 0:01:35]} 7. Nxf6+ {[%emt 0:00:44]} exf6 {[%emt 0:00:46]} 8. O-O-O {[%emt 0:00:21]} O-O {[%emt 0:08:44]} 9. Bh6 a5 {[%emt 0:03:40]} 10. Bxg7 {[%emt 0:04:07]} Kxg7 {[%emt 0:00:12]} 11. h4 {[%emt 0:01:08]} h5 {[%emt 0:04:35]} 12. Be2 {[%emt 0:01:39]} Qd5 {[%emt 0:05:00]} 13. b3 {[%emt 0:02:09]} a4 {[%emt 0:04:17]} 14. Bf3 {[%emt 0:12:01]} Qd6 {[%emt 0:00:49]} 15. Nh3 {[%emt 0:04:17]} Qa3+ {[%emt 0:01:52]} 16. Kb1 {[%emt 0:00:41]} axb3 {[%emt 0:00:19]} 17. cxb3 {[%emt 0:00:14]} Bf5+ {[%emt 0:00:09]} 18. Ka1 {[%emt 0:00:18]} Qxb3 {[%emt 0:00:45]} 19. Qb2 {[%emt 0:00:44]} Qa4 {[%emt 0:12:25]} 20. Nf4 {[%emt 0:07:11]} Rh8 {[%emt 0:02:58]} 21. Rhe1 {[%emt 0:09:31]} Na6 {[%emt 0:01:03]} 22. Re7 {[%emt 0:06:24]} Nb4 {[%emt 0:02:03]} 23. Rd2 {[%emt 0:01:46]} Bc2 {[%emt 0:03:34]} 24. Ne6+ {[%emt 0:00:41]} Kh6 {[%emt 0:04:17]} 25. Rxc2 {[%emt 0:00:28]} Qxc2 {[%emt 0:00:46]} 26. Qxc2 {[%emt 0:00:25]} Nxc2+ {[%emt 0:00:03]} 27. Kb2 {[%emt 0:00:28]} fxe6 {[%emt 0:00:36]} 28. Kxc2 {[%emt 0:00:12]} Rxa2+ {[%emt 0:00:12]} 29. Kd3 {[%emt 0:00:12]} g5 {[%emt 0:01:32]} 30. Rxe6 {[%emt 0:00:18]} Rf8 {[%emt 0:00:30]} 31. Re7 {[%emt 0:00:25]} g4 {[%emt 0:00:57]} 32. Be2 {[%emt 0:00:27]} Rb8 {[%emt 0:00:27]} 33. Kc3 {[%emt 0:00:14]} b5 {[%emt 0:01:04]} 34. Bd3 {[%emt 0:00:07]} Rh8 {[%emt 0:01:14]} 35. Re6 {[%emt 0:00:35]} Rxf2 {[%emt 0:00:46]} 36. Rxc6 {[%emt 0:00:10]} Kg7 {[%emt 0:00:27]} 37. Rc7+ {[%emt 0:00:11]} Kh6 {[%emt 0:00:53]} 38. Be4 {[%emt 0:00:32]} f5 {[%emt 0:00:23]} 39. Rc6+ {[%emt 0:00:00]} Kg7 {[%emt 0:00:00]} 40. Bd5 {[%emt 0:00:00]} Rh6 {[%emt 0:00:00]} 41. Rc7+ {[%emt 0:01:44]} Kf8 {[%emt 0:03:03]} 42. Rf7+ {[%emt 0:01:01]} Ke8 {[%emt 0:00:14]} 43. Ra7 {[%emt 0:00:17]} f4 {[%emt 0:00:39]} 44. Ra8+ {[%emt 0:00:14]} Ke7 {[%emt 0:00:39]} 45. Ra7+ {[%emt 0:00:10]} Kd8 {[%emt 0:00:22]} 46. Ra8+ {[%emt 0:00:13]} Kc7 {[%emt 0:00:09]} 47. Ra7+ {[%emt 0:00:13]} Kb6 {[%emt 0:00:26]} 48. Rb7+ {[%emt 0:00:15]} Ka6 {[%emt 0:00:16]} 49. Rb8 {[%emt 0:01:48]} Rh7 {[%emt 0:01:01]} 50. Kb4 {[%emt 0:00:36]} Rc7 {[%emt 0:03:19]} 51. Rxb5 {[%emt 0:00:47]} Rb2+ {[%emt 0:00:12]} 52. Bb3 {[%emt 0:00:15]} Rxb3+ {[%emt 0:00:05]} 53. Kxb3 {[%emt 0:00:28]} Kxb5 {[%emt 0:00:05]} 54. d5 {[%emt 0:00:12]} f3 {[%emt 0:00:07]} 55. d6 {[%emt 0:00:09]} Rd7 {[%emt 0:00:07]} 56. gxf3 {[%emt 0:00:11]} gxf3 {[%emt 0:00:08]} 0-1

[Event "EYCC Open-U10 2019"]
[Site "Bratislava"]
[Date "2019.08.07"]
[Round "6.48"]
[White "Mammi, Ottavio"]
[Black "Sarafis, Rafail"]
[Result "0-1"]
[ECO "A17"]
[WhiteElo "1477"]
[BlackElo "1094"]
[Annotator "NA"]
[PlyCount "120"]
[EventDate "2019.08.02"]
[EventType "swiss"]
[EventCountry "SVK"]
[SourceTitle "playchess.com"]
[Source "ChessBase"]
[SourceQuality "1"]
[TimeControl "40/5400+30:1800+30"]

1. c4 {[%emt 0:00:05]} Nf6 {[%emt 0:00:00]} 2. Nc3 {[%emt 0:00:17]} e6 {[%emt 0:00:00]} 3. g3 {[%emt 0:02:28]} Nc6 {[%emt 0:01:00]} 4. Bg2 {[%emt 0:00:11]} Bc5 {[%emt 0:01:28]} 5. e3 {[%emt 0:00:20]} e5 {[%emt 0:02:32]} 6. Nge2 {[%emt 0:01:39]} a6 {[%emt 0:05:01]} 7. O-O {[%emt 0:02:55]} d6 {[%emt 0:02:21]} 8. d4 {[%emt 0:00:24]} Ba7 {[%emt 0:02:21]} 9. a3 {[%emt 0:01:56]} O-O {[%emt 0:03:13]} 10. b4 {[%emt 0:00:47]} Re8 {[%emt 0:02:03]} 11. h3 {[%emt 0:00:26]} h5 {[%emt 0:06:45]} 12. d5 {[%emt 0:00:30]} Ne7 {[%emt 0:01:28]} 13. Kh2 {[%emt 0:05:01]} Ng6 {[%emt 0:11:10]} 14. f4 {[%emt 0:02:19]} exf4 {[%emt 0:00:30]} 15. exf4 {[%emt 0:00:10]} Bf5 {[%emt 0:03:11]} 16. Nd4 {[%emt 0:01:23]} Be4 {[%emt 0:14:18]} 17. Re1 {[%emt 0:06:09]} Bxg2 {[%emt 0:01:50]} 18. Rxe8+ {[%emt 0:00:44]} Qxe8 {[%emt 0:00:10]} 19. Kxg2 {[%emt 0:00:02]} Ne4 {[%emt 0:01:55]} 20. Nce2 {[%emt 0:03:48]} Qd7 {[%emt 0:12:54]} 21. Bb2 {[%emt 0:04:14]} Nf6 {[%emt 0:08:11]} 22. Qd3 {[%emt 0:02:46]} Re8 {[%emt 0:06:08]} 23. Nf3 {[%emt 0:03:55]} Re3 {[%emt 0:03:33]} 24. Qc2 {[%emt 0:01:01]} h4 {[%emt 0:03:32]} 25. g4 {[%emt 0:04:05]} Rxe2+ {[%emt 0:00:30]} 26. Qxe2 {[%emt 0:02:53]} Nxf4+ {[%emt 0:00:06]} 27. Kf1 {[%emt 0:00:07]} Nxe2 {[%emt 0:00:18]} 28. Kxe2 {[%emt 0:00:01]} Qe7+ {[%emt 0:00:19]} 29. Kf1 {[%emt 0:00:06]} Ne4 30. Re1 {[%emt 0:00:00]} Ng3+ {[%emt 0:01:58]} 31. Kg2 {[%emt 0:00:43]} Ne2 {[%emt 0:02:57]} 32. Kf1 {[%emt 0:01:51]} Qe3 {[%emt 0:00:14]} 33. Rxe2 {[%emt 0:00:10]} Qxf3+ 34. Ke1 {[%emt 0:00:02]} Qh1+ {[%emt 0:01:17]} 35. Kd2 {[%emt 0:01:03]} Qxh3 {[%emt 0:00:45]} 36. g5 {[%emt 0:00:37]} Qb3 37. Ke1 {[%emt 0:00:02]} Qxc4 {[%emt 0:00:57]} 38. g6 {[%emt 0:00:30]} fxg6 39. Re7 {[%emt 0:00:33]} Bd4 {[%emt 0:02:37]} 40. Bxd4 {[%emt 0:00:00]} Qxd4 {[%emt 0:00:00]} 41. Rxc7 Qxd5 42. Rc8+ {[%emt 0:01:24]} Kh7 {[%emt 0:00:37]} 43. Rc3 {[%emt 0:00:24]} Qe5+ {[%emt 0:00:21]} 44. Kd2 {[%emt 0:00:01]} Qxc3+ {[%emt 0:00:06]} 45. Kxc3 {[%emt 0:00:14]} h3 {[%emt 0:00:15]} 46. Kd4 {[%emt 0:00:09]} h2 {[%emt 0:00:20]} 47. Kd5 {[%emt 0:00:08]} h1=Q+ {[%emt 0:00:19]} 48. Kxd6 {[%emt 0:00:07]} Qc6+ {[%emt 0:00:17]} 49. Ke7 {[%emt 0:00:09]} Kg8 {[%emt 0:00:22]} 50. b5 {[%emt 0:00:07]} Qf6+ {[%emt 0:01:30]} 51. Kd7 {[%emt 0:00:08]} Kf8 {[%emt 0:00:28]} 52. Kc7 {[%emt 0:00:01]} Ke8 {[%emt 0:01:27]} 53. Kxb7 {[%emt 0:00:02]} axb5 {[%emt 0:00:42]} 54. a4 {[%emt 0:00:07]} b4 {[%emt 0:00:52]} 55. a5 {[%emt 0:00:07]} b3 {[%emt 0:00:24]} 56. a6 {[%emt 0:00:02]} b2 {[%emt 0:00:02]} 57. a7 {[%emt 0:00:08]} b1=Q+ {[%emt 0:00:37]} 58. Kc7 {[%emt 0:00:08]} Qbb6+ {[%emt 0:00:29]} 59. Kc8 {[%emt 0:00:09]} Ke7 {[%emt 0:01:26]} 60. a8=Q {[%emt 0:00:12]} Qf8# {[%emt 0:00:29]} 0-1

[Event "EYCC Open-U10 2019"]
[Site "Bratislava"]
[Date "2019.08.08"]
[Round "7.1"]
[White "Warchol, Kamil"]
[Black "Vetokhin, Savva"]
[Result "0-1"]
[ECO "B90"]
[WhiteElo "1573"]
[BlackElo "1954"]
[Annotator "NA"]
[PlyCount "102"]
[EventDate "2019.08.02"]
[EventType "swiss"]
[EventCountry "SVK"]
[SourceTitle "playchess.com"]
[Source "ChessBase"]
[SourceQuality "1"]
[TimeControl "40/5400+30:1800+30"]

1. e4 c5 2. Nf3 d6 3. d4 cxd4 4. Nxd4 Nf6 5. Nc3 a6 6. Bc4 e6 7. O-O b5 8. Bb3 Be7 9. Qf3 Qc7 10. Re1 O-O 11. Qg3 Bd7 12. Bh6 Ne8 13. Bg5 Bxg5 14. Qxg5 Qc5 15. Qd2 Nc6 16. Nxc6 Bxc6 17. a4 Nf6 18. Rad1 Rad8 19. axb5 axb5 20. e5 dxe5 21. Qxd8 Rxd8 22. Rxd8+ Ne8 23. Ne4 Qe7 24. Rdd1 h6 25. Ng3 Qc5 26. Rd3 Nf6 27. h3 e4 28. Rde3 Bd5 29. R1e2 h5 30. Rc3 Qd4 31. Nf1 Qd1 32. Rd2 Qc1 33. Bxd5 Nxd5 34. Rb3 b4 35. h4 f5 36. g3 Qe1 37. Kg2 g5 38. hxg5 h4 39. gxh4 f4 40. c4 f3+ 41. Kg3 Qxf1 42. cxd5 Qg1+ 43. Kf4 Qc1 44. Ke3 Qe1+ 45. Kf4 Qxd2+ 46. Kg3 exd5 47. h5 Qxg5+ 48. Kh3 Qxh5+ 49. Kg3 Qg5+ 50. Kh3 Qg2+ 51. Kh4 Qxf2+ 0-1

[Event "EYCC Open-U10 2019"]
[Site "Bratislava"]
[Date "2019.08.08"]
[Round "7.2"]
[White "Finek, Vaclav"]
[Black "Kononenko, Vladimir"]
[Result "1-0"]
[ECO "C15"]
[WhiteElo "2043"]
[BlackElo "1667"]
[Annotator "NA"]
[PlyCount "105"]
[EventDate "2019.08.02"]
[EventType "swiss"]
[EventCountry "SVK"]
[SourceTitle "playchess.com"]
[Source "ChessBase"]
[SourceQuality "1"]
[TimeControl "40/5400+30:1800+30"]

1. e4 e6 2. d4 d5 3. Nc3 Bb4 4. exd5 exd5 5. Bd3 Be6 6. Nge2 Nf6 7. O-O O-O 8. Bg5 h6 9. Bh4 Be7 10. Bg3 Nh5 11. Nf4 Nxf4 12. Bxf4 Nc6 13. Nb5 Rc8 14. c3 a6 15. Na3 Bd6 16. Qd2 Bxf4 17. Qxf4 f5 18. Rae1 Qf6 19. Re2 g5 20. Qd2 Rce8 21. f4 g4 22. Nc2 Ne7 23. Rfe1 Nc8 24. Re5 Nd6 25. R1e2 c6 26. Qe1 Ne4 27. Bxe4 dxe4 28. b3 Bf7 29. Ne3 Bg6 30. Rd2 Re7 31. Qf1 Rd8 32. Qc4+ Kg7 33. Qc5 Rxe5 34. dxe5 Qf8 35. Qxf8+ Rxf8 36. Rd7+ Kg8 37. Nc4 b5 38. Nd6 c5 39. e6 c4 40. e7 Re8 41. Rd8 cxb3 42. axb3 a5 43. Nxe8 Kf7 44. Nc7 Kxe7 45. Rd4 Bf7 46. Nxb5 Bxb3 47. c4 Ba4 48. Nc3 Bc6 49. c5 Bb7 50. Kf2 h5 51. Nd5+ Ke6 52. Nb6 Bc6 53. Rd6+ {Kd5} 1-0

[Event "EYCC Open-U10 2019"]
[Site "Bratislava"]
[Date "2019.08.08"]
[Round "7.3"]
[White "Samunenkov, Ihor"]
[Black "Azadaliyev, Jahandar"]
[Result "0-1"]
[ECO "B33"]
[WhiteElo "1985"]
[BlackElo "1905"]
[Annotator "NA"]
[PlyCount "114"]
[EventDate "2019.08.02"]
[EventType "swiss"]
[EventCountry "SVK"]
[SourceTitle "playchess.com"]
[Source "ChessBase"]
[SourceQuality "1"]
[TimeControl "40/5400+30:1800+30"]

1. e4 {[%emt 0:00:00]} c5 {[%emt 0:00:00]} 2. Nf3 {[%emt 0:00:00]} Nc6 {[%emt 0:00:29]} 3. d4 {[%emt 0:00:23]} cxd4 {[%emt 0:00:40]} 4. Nxd4 {[%emt 0:00:09]} Nf6 {[%emt 0:00:27]} 5. Nc3 {[%emt 0:00:42]} e5 {[%emt 0:00:32]} 6. Ndb5 {[%emt 0:00:38]} d6 {[%emt 0:00:39]} 7. Bg5 {[%emt 0:00:20]} a6 {[%emt 0:00:47]} 8. Na3 {[%emt 0:00:13]} b5 {[%emt 0:00:40]} 9. Bxf6 {[%emt 0:00:40]} gxf6 {[%emt 0:00:08]} 10. Nd5 {[%emt 0:00:15]} f5 {[%emt 0:00:37]} 11. Bd3 {[%emt 0:00:49]} Be6 {[%emt 0:00:57]} 12. c3 {[%emt 0:05:19]} Bg7 {[%emt 0:03:15]} 13. Qh5 {[%emt 0:05:48]} O-O {[%emt 0:03:13]} 14. exf5 {[%emt 0:11:59]} Bxd5 {[%emt 0:01:01]} 15. f6 {[%emt 0:00:08]} e4 {[%emt 0:00:06]} 16. fxg7 {[%emt 0:14:00]} Re8 {[%emt 0:00:09]} 17. Qxd5 {[%emt 0:00:23]} exd3+ {[%emt 0:00:03]} 18. Kf1 {[%emt 0:00:24]} Ne5 {[%emt 0:01:32]} 19. Qd4 {[%emt 0:05:51]} Qg5 {[%emt 0:07:01]} 20. Rd1 {[%emt 0:04:30]} Qh5 {[%emt 0:02:10]} 21. f3 {[%emt 0:01:59]} Nxf3 {[%emt 0:07:29]} 22. Qxd3 {[%emt 0:00:49]} Ne5 {[%emt 0:00:25]} 23. Qd5 {[%emt 0:00:56]} Qh4 {[%emt 0:01:08]} 24. Kg1 {[%emt 0:03:24]} Ng6 {[%emt 0:14:01]} 25. g3 {[%emt 0:05:40]} Qh3 {[%emt 0:04:06]} 26. Rf1 {[%emt 0:03:24]} Ra7 {[%emt 0:02:32]} 27. Qf5 {[%emt 0:08:55]} Qh6 {[%emt 0:03:26]} 28. Kg2 {[%emt 0:01:31]} Rae7 {[%emt 0:01:51]} 29. Rf2 {[%emt 0:00:54]} Qxg7 {[%emt 0:04:56]} 30. Qf6 {[%emt 0:05:43]} Qxf6 {[%emt 0:12:13]} 31. Rxf6 {[%emt 0:00:09]} Re6 {[%emt 0:00:36]} 32. Rf2 {[%emt 0:04:24]} Ne5 {[%emt 0:00:35]} 33. Re1 {[%emt 0:01:25]} d5 {[%emt 0:03:21]} 34. Rd2 {[%emt 0:01:37]} Ng4 {[%emt 0:01:44]} 35. Rxe6 {[%emt 0:00:24]} fxe6 {[%emt 0:00:23]} 36. Nc2 {[%emt 0:00:27]} Ne5 {[%emt 0:00:42]} 37. Ne3 {[%emt 0:01:06]} Kf7 {[%emt 0:01:12]} 38. Re2 {[%emt 0:03:06]} a5 {[%emt 0:01:33]} 39. g4 {[%emt 0:01:01]} b4 {[%emt 0:00:56]} 40. cxb4 {[%emt 0:00:00]} axb4 {[%emt 0:00:00]} 41. Kg3 {[%emt 0:02:55]} d4 {[%emt 0:05:28]} 42. Nc2 {[%emt 0:01:25]} Nc6 {[%emt 0:00:32]} 43. Rd2 {[%emt 0:00:30]} e5 {[%emt 0:00:12]} 44. h3 {[%emt 0:01:25]} e4 {[%emt 0:04:37]} 45. Kf4 {[%emt 0:00:49]} d3 {[%emt 0:02:06]} 46. Ne1 {[%emt 0:01:07]} Ne5 {[%emt 0:03:40]} 47. Kxe4 {[%emt 0:00:53]} Nc4+ {[%emt 0:00:38]} 48. Kxd3 {[%emt 0:00:24]} Nxd2 {[%emt 0:00:05]} 49. Kxd2 {[%emt 0:00:05]} Ra8 {[%emt 0:00:04]} 50. Nd3 {[%emt 0:01:43]} Rxa2 {[%emt 0:00:15]} 51. Kc2 {[%emt 0:00:06]} Ra1 {[%emt 0:00:16]} 52. Nxb4 {[%emt 0:00:03]} Rh1 {[%emt 0:00:06]} 53. Nd3 {[%emt 0:00:13]} Rxh3 {[%emt 0:00:08]} 54. b4 {[%emt 0:00:05]} Ke7 {[%emt 0:00:24]} 55. b5 {[%emt 0:01:07]} Kd6 {[%emt 0:00:38]} 56. Kd2 {[%emt 0:01:14]} Rg3 {[%emt 0:01:22]} 57. b6 {[%emt 0:00:46]} Rxg4 {[%emt 0:00:21]} 0-1

[Event "EYCC Open-U10 2019"]
[Site "Bratislava"]
[Date "2019.08.08"]
[Round "7.4"]
[White "Usov, Aleksandr E."]
[Black "Averin, Nikolay"]
[Result "1-0"]
[ECO "B22"]
[WhiteElo "1809"]
[BlackElo "1840"]
[Annotator "NA"]
[PlyCount "173"]
[EventDate "2019.08.02"]
[EventType "swiss"]
[EventCountry "SVK"]
[SourceTitle "playchess.com"]
[Source "ChessBase"]
[SourceQuality "1"]
[TimeControl "40/5400+30:1800+30"]

1. e4 {[%emt 0:00:00]} c5 {[%emt 0:00:00]} 2. c3 {[%emt 0:00:00]} Nf6 {[%emt 0:00:00]} 3. e5 {[%emt 0:00:01]} Nd5 {[%emt 0:00:00]} 4. d4 {[%emt 0:00:07]} cxd4 {[%emt 0:00:02]} 5. Nf3 {[%emt 0:00:04]} Nc6 {[%emt 0:00:12]} 6. cxd4 {[%emt 0:01:09]} d6 {[%emt 0:00:07]} 7. Bc4 {[%emt 0:00:23]} dxe5 {[%emt 0:00:15]} 8. Nxe5 {[%emt 0:01:20]} e6 {[%emt 0:00:15]} 9. O-O {[%emt 0:00:55]} Be7 {[%emt 0:00:17]} 10. Nf3 {[%emt 0:07:04]} O-O {[%emt 0:00:55]} 11. Nc3 {[%emt 0:00:06]} a6 {[%emt 0:05:27]} 12. Nxd5 {[%emt 0:04:38]} exd5 {[%emt 0:01:13]} 13. Bd3 {[%emt 0:00:05]} Bg4 {[%emt 0:01:53]} 14. Be3 {[%emt 0:01:31]} Bf6 {[%emt 0:05:35]} 15. h3 {[%emt 0:01:34]} Bxf3 {[%emt 0:13:11]} 16. Qxf3 {[%emt 0:00:27]} g6 {[%emt 0:09:34]} 17. Qf4 {[%emt 0:25:41]} Bg7 18. Bc2 {[%emt 0:06:00]} Qb6 {[%emt 0:07:08]} 19. Bb3 {[%emt 0:01:15]} Rad8 {[%emt 0:02:08]} 20. Rad1 {[%emt 0:00:44]} Qb5 {[%emt 0:13:18]} 21. Rc1 {[%emt 0:10:36]} Qb4 {[%emt 0:24:36]} 22. Rfd1 {[%emt 0:02:59]} Rd7 {[%emt 0:03:23]} 23. Rc3 {[%emt 0:06:21]} a5 {[%emt 0:02:50]} 24. a3 {[%emt 0:01:04]} Qb5 {[%emt 0:00:59]} 25. a4 {[%emt 0:00:52]} Qb4 {[%emt 0:00:27]} 26. Rcd3 {[%emt 0:01:05]} Re8 {[%emt 0:02:31]} 27. Qf3 {[%emt 0:01:08]} Qd6 {[%emt 0:05:13]} 28. Bf4 {[%emt 0:01:47]} Qf6 {[%emt 0:00:23]} 29. Qg4 {[%emt 0:00:56]} Qf5 {[%emt 0:00:39]} 30. Qxf5 {[%emt 0:00:12]} gxf5 {[%emt 0:00:01]} 31. Rg3 {[%emt 0:01:28]} Kf8 {[%emt 0:00:48]} 32. Be3 {[%emt 0:07:43]} f4 {[%emt 0:02:01]} 33. Bxf4 {[%emt 0:00:02]} Nxd4 {[%emt 0:00:06]} 34. Kf1 {[%emt 0:02:05]} Ne2 {[%emt 0:00:20]} 35. Rf3 {[%emt 0:00:37]} Nxf4 {[%emt 0:00:25]} 36. Rxf4 {[%emt 0:00:07]} d4 {[%emt 0:00:08]} 37. Bc4 {[%emt 0:00:11]} Rc7 {[%emt 0:00:34]} 38. b3 {[%emt 0:00:19]} Rce7 {[%emt 0:00:25]} 39. Rf5 {[%emt 0:00:49]} b6 {[%emt 0:00:15]} 40. g4 {[%emt 0:00:00]} Rd8 {[%emt 0:00:00]} 41. g5 {[%emt 0:02:29]} Rd6 {[%emt 0:13:18]} 42. Rf3 {[%emt 0:02:07]} Rdd7 {[%emt 0:07:39]} 43. Rc1 {[%emt 0:01:07]} Rc7 {[%emt 0:01:01]} 44. Rd1 {[%emt 0:00:42]} Rc5 {[%emt 0:00:29]} 45. h4 {[%emt 0:00:23]} Rce5 {[%emt 0:00:45]} 46. Bd3 {[%emt 0:00:20]} h6 {[%emt 0:07:34]} 47. g6 {[%emt 0:00:02]} Rh5 {[%emt 0:01:29]} 48. Rc1 {[%emt 0:01:42]} Be5 {[%emt 0:01:16]} 49. Rc8+ {[%emt 0:06:23]} Kg7 {[%emt 0:00:23]} 50. Rc6 {[%emt 0:06:02]} f6 {[%emt 0:02:29]} 51. Rh3 {[%emt 0:00:29]} Bc7 {[%emt 0:00:18]} 52. Rf3 {[%emt 0:01:48]} Be5 {[%emt 0:00:10]} 53. Rxb6 {[%emt 0:00:47]} Rxh4 {[%emt 0:00:24]} 54. Ra6 {[%emt 0:01:22]} h5 {[%emt 0:00:41]} 55. Rxa5 {[%emt 0:01:55]} Rg4 {[%emt 0:00:50]} 56. Rh3 {[%emt 0:00:48]} Kh6 {[%emt 0:00:49]} 57. Ra8 {[%emt 0:00:57]} f5 {[%emt 0:00:48]} 58. Bxf5 {[%emt 0:01:57]} Rg5 {[%emt 0:00:07]} 59. Bd3 {[%emt 0:00:52]} Kg7 {[%emt 0:00:16]} 60. Ra5 {[%emt 0:01:08]} Rb7 {[%emt 0:00:34]} 61. f4 {[%emt 0:02:27]} Bxf4 {[%emt 0:00:07]} 62. Rxg5 {[%emt 0:00:05]} Bxg5 {[%emt 0:00:06]} 63. Rxh5 {[%emt 0:00:07]} Rxb3 {[%emt 0:00:45]} 64. Rh7+ {[%emt 0:00:59]} Kf6 {[%emt 0:01:13]} 65. g7 {[%emt 0:00:24]} Rb8 {[%emt 0:00:49]} 66. Rh8 {[%emt 0:00:18]} Bf4 {[%emt 0:00:13]} 67. Rxb8 {[%emt 0:00:11]} Kxg7 {[%emt 0:00:07]} 68. Rb7+ {[%emt 0:00:06]} Kf6 {[%emt 0:00:04]} 69. a5 {[%emt 0:00:07]} Bd6 {[%emt 0:00:23]} 70. a6 {[%emt 0:00:30]} Bc5 {[%emt 0:00:05]} 71. Rc7 {[%emt 0:00:04]} Ke5 {[%emt 0:00:15]} 72. Rxc5+ {[%emt 0:00:07]} Kd6 {[%emt 0:00:04]} 73. Rc1 {[%emt 0:00:17]} Kd7 {[%emt 0:00:04]} 74. a7 {[%emt 0:00:06]} Kd6 {[%emt 0:00:07]} 75. a8=B {[%emt 0:00:17]} Kd7 {[%emt 0:00:23]} 76. Rc4 {[%emt 0:00:06]} Kd6 {[%emt 0:00:03]} 77. Rxd4+ {[%emt 0:00:10]} Ke5 {[%emt 0:00:04]} 78. Rd5+ {[%emt 0:00:07]} Ke6 {[%emt 0:00:09]} 79. Bc6 Ke7 {[%emt 0:00:05]} 80. Bf5 {[%emt 0:00:20]} Kf6 {[%emt 0:00:57]} 81. Kf2 {[%emt 0:00:02]} Kg5 {[%emt 0:00:18]} 82. Kg3 {[%emt 0:00:01]} Kf6 {[%emt 0:01:33]} 83. Kf4 {[%emt 0:00:02]} Ke7 {[%emt 0:00:23]} 84. Ke5 {[%emt 0:00:08]} Kf7 {[%emt 0:01:03]} 85. Rd7+ {[%emt 0:00:15]} Ke8 {[%emt 0:00:15]} 86. Kf6 {[%emt 0:00:29]} Kf8 {[%emt 0:02:33]} 87. Rd8# {[%emt 0:00:57]} 1-0